Workbook

Sheet Index
A1: Charts and Data - Fiscal Strategy Report 2026
A2: Published 28 May 2026
A4: Published by the New Zealand Treasury at:
A5: https://www.treasury.govt.nz/publications/fiscal-strategy-report/fiscal-strategy-report-2026
A8: This spreadsheet contains the tables, charts and the data used to generate the charts that appear in the Fiscal Strategy Report 2026.
A11: Crown copyright ©
A14: This copyright work is licensed under the Creative Commons Attribution 4.0 International licence. In essence, you are free to copy, distribute and adapt the work, as long as you attribute the work to the Crown and abide by the other licence terms.
A15: To view a copy of this licence, visit http://creativecommons.org/licenses/by/4.0/. Please note that no departmental or governmental emblem, logo or Coat of Arms may be used in any way which infringes any provision of the Flags, Emblems, and Names Protection Act 1981 or would infringe such provision if the relevant use occurred within New Zealand. Attribution to the Crown should be in written form and not by reproduction of any such emblem, logo or Coat of Arms.
A19: # | B19: Chart title | C19: Source(s)
A20: 1 | B20: Core Crown revenue and expenses | C20: The Treasury
A21: 2 | B21: OBEGALx | C21: The Treasury
A22: 3 | B22: Net core Crown debt | C22: The Treasury
A23: 4 | B23: West Texas Intermediate crude oil forecast comparison | C23: Haver Analytics, U.S. Energy Information Administration, the Treasury
A24: 5 | B24: Consumers price index inflation | C24: Stats NZ, the Treasury
A25: 6 | B25: Real production GDP growth | C25: Stats NZ, the Treasury
A26: 7 | B26: Core Crown expenses | C26: The Treasury
A27: 8 | B27: OBEGALx | C27: The Treasury
A28: 9 | B28: Net core Crown debt | C28: The Treasury
A29: 10 | B29: General government net debt | C29: IMF Fiscal Monitor April 2026
A30: 11 | B30: Overall balance | C30: IMF Fiscal Monitor April 2026
A31: 12 | B31: Funding of the Budget 2026 operating package | C31: The Treasury
A32: 13 | B32: Operating allowances | C32: The Treasury
A33: 14 | B33: Net worth attributable to the Crown for 2024/25 by entity | C33: The Treasury
A34: A2.1 | B34: Net core Crown debt | C34: The Treasury
A35: A2.2 | B35: OBEGALx | C35: The Treasury
A36: A2.3 | B36: Core Crown expenses | C36: The Treasury
A37: A3.1 | B37: Real GDP forecasts from PREFU 2023 and BEFU 2026 | C37: Stats NZ, the Treasury
A38: A3.2 | B38: Core Crown tax-to-GDP ratio forecasts from PREFU 2023 and BEFU 2026 | C38: Stats NZ, the Treasury
A40: # | B40: Table title | C40: Source(s)
A41: 1 | B41: Increase in core Crown expenses from 2018/19 to 2025/26 by functional classification | C41: The Treasury
A42: 2 | B42: Changes in nominal GDP and core Crown tax revenue forecasts | C42: The Treasury
A43: 3 | B43: Changes in OBEGALx forecasts between HYEFU 2025 and BEFU 2026 | C43: The Treasury
A44: A1.1 | B44: BEFU fiscal forecasts | C44: The Treasury
A45: A2.1 | B45: Fiscal indicators from Scenario 1 | C45: The Treasury
A46: A2.2 | B46: Fiscal indicators from Scenario 2 | C46: The Treasury
A47: A2.3 | B47: Fiscal indicators from Scenario 3 | C47: The Treasury
A48: A2.4 | B48: Fiscal indicators from Scenario 4 | C48: The Treasury
A49: A3.1 | B49: Changes in OBEGALx forecasts between PREFU 2023 and BEFU 2026 | C49: The Treasury
A50: A4.1 | B50: NZSF contributions | C50: The Treasury

Sheet Data 1
B1: Figure 1: Core Crown revenue and expenses
B2: Source: The Treasury
C4: % of GDP
B5: Year ending 30 June | C5: Core Crown revenue | D5: Core Crown expenses | AE5: 0.303
B6: 2008 | C6: 32.6 | D6: 30
B7: 2009 | C7: 31.2 | D7: 33.6
B8: 2010 | C8: 28.3 | D8: 32.2
B9: 2011 | C9: 27.8 | D9: 34
B10: 2012 | C10: 28.1 | D10: 32
B11: 2013 | C11: 29.1 | D11: 31.9
B12: 2014 | C12: 28.3 | D12: 30
B13: 2015 | C13: 29.4 | D13: 29.4
B14: 2016 | C14: 29.4 | D14: 28.6
B15: 2017 | C15: 29.7 | D15: 27.7
B16: 2018 | C16: 29.4 | D16: 27.3
B17: 2019 | C17: 30.1 | D17: 28
B18: 2020 | C18: 28.9 | D18: 34.2
B19: 2021 | C19: 30.5 | D19: 31.4
B20: 2022 | C20: 32.2 | D20: 34.4
B21: 2023 | C21: 30.7 | D21: 31.7
B22: 2024 | C22: 31.7 | D22: 33
B23: 2025 | C23: 30.9 | D23: 32.6
B24: 2026* | C24: 30.4 | D24: 32.6 | E24: Forecast
B26: * 2026 shows the latest forecast

Sheet Data 2
B1: Figure 2: OBEGALx
B2: Source: The Treasury
C3: % of GDP
B4: Year ending 30 June | C4: OBEGALx
B5: 2008 | C5: 3.066247459
B6: 2009 | C6: -2.001295576
B7: 2010 | C7: -3.884390486
B8: 2011 | C8: -9.699830679
B9: 2012 | C9: -5.522484467
B10: 2013 | C10: -2.671740053
B11: 2014 | C11: -1.6
B12: 2015 | C12: 0.1
B13: 2016 | C13: 0.8
B14: 2017 | C14: 1.7
B15: 2018 | C15: 2
B16: 2019 | C16: 2.7
B17: 2020 | C17: -6.6
B18: 2021 | C18: -0.7
B19: 2022 | C19: -2.4
B20: 2023 | C20: -1.8
B21: 2024 | C21: -2.1
B22: 2025 | C22: -2.1
B23: 2026* | C23: -2.6 | D23: Forecast
B25: * 2026 shows the latest forecast

Sheet Data 3
B1: Figure 3: Net core Crown debt
B2: Source: The Treasury
C3: % of GDP
B4: Year ending 30 June (from 1990) | C4: Net core Crown debt | D4: Core Crown net debt (pre-2009 definition)
B5: 1974 | D5: 4.365933127
B6: 1975 | D6: 4.910320494
B7: 1976 | D7: 8.567703807
B8: 1977 | D8: 7.653879187
B9: 1978 | D9: 8.54854152
B10: 1979 | D10: 14.30810219
B11: 1980 | D11: 15.70329991
B12: 1981 | D12: 16.9406745
B13: 1982 | D13: 20.33686096
B14: 1983 | D14: 26.80368575
B15: 1984 | D15: 29.60666255
B16: 1985 | D16: 38.02457154
B17: 1986 | D17: 39.60290289
B18: 1987 | D18: 43.82775698
B19: 1988 | D19: 39.2330474
B20: 1989 | D20: 42.38151043
B21: 1990 | D21: 47.5188914
B22: 1991 | D22: 44.8553417
B23: 1992 | C23: 54.82267953 | D23: 49.93863814
B24: 1993 | C24: 50.74040001
B25: 1994 | C25: 45.30924899
B26: 1995 | C26: 42.09115532
B27: 1996 | C27: 34.67871536
B28: 1997 | C28: 29.7
B29: 1998 | C29: 29
B30: 1999 | C30: 24
B31: 2000 | C31: 22.6
B32: 2001 | C32: 20.4
B33: 2002 | C33: 19.5
B34: 2003 | C34: 17.9
B35: 2004 | C35: 16.2
B36: 2005 | C36: 12.7
B37: 2006 | C37: 9.8
B38: 2007 | C38: 7.5
B39: 2008 | C39: 5.4
B40: 2009 | C40: 9
B41: 2010 | C41: 13.5
B42: 2011 | C42: 19.5
B43: 2012 | C43: 23.6
B44: 2013 | C44: 25.5
B45: 2014 | C45: 25.3
B46: 2015 | C46: 24.7
B47: 2016 | C47: 23.9
B48: 2017 | C48: 21.6
B49: 2018 | C49: 19.5
B50: 2019 | C50: 18.6
B51: 2020 | C51: 26.2
B52: 2021 | C52: 29.7
B53: 2022 | C53: 35.3
B54: 2023 | C54: 38.6
B55: 2024 | C55: 41.7
B56: 2025 | C56: 41.9
B57: 2026* | C57: 42.4
B59: * 2026 shows the latest forecast
B60: The measure of net core Crown debt adopted in 2009 is restated back to 1992. The earlier measure for the period before 1992 included advances. March years are used prior to 1990.

Sheet Table 1
B1: Table 1: Increase in core Crown expenses from 2018/19 to 2025/26 by functional classification
B2: Source: The Treasury
B5: Functional classification | C5: $billions
B6: Core Crown expenses 2018/19 | C6: 87
B7: Health | C7: 14.9
B8: NZ Superannuation | C8: 10.2
B9: Welfare benefits | C9: 9.4
B10: Education | C10: 7.2
B11: Finance costs | C11: 5.4
B12: Transport and communications | C12: 3.2
B13: Law and order | C13: 2.7
B14: Housing and community development | C14: 1.5
B15: Other | C15: =C16-C6-SUM(C7:C14) -> 5.7
B16: Core Crown expenses 2025/26* | C16: 147.2
B18: *2025/26 shows the latest forecast

Sheet Data 4
B1: Figure 4: West Texas Intermediate crude oil forecast comparison
B2: Sources: Haver Analytics, U.S. Energy Information Administration, the Treasury
C4: HYEFU 2025 | D4: BEFU 2026
B5: 2012-06-01 | C5: 93.47785 | D5: 93.47785
B6: 2012-09-01 | C6: 92.26954 | D6: 92.26954
B7: 2012-12-01 | C7: 88.15712 | D7: 88.15712
B8: 2013-03-01 | C8: 94.32347 | D8: 94.32347
B9: 2013-06-01 | C9: 94.22259 | D9: 94.22259
B10: 2013-09-01 | C10: 105.8506 | D10: 105.8506
B11: 2013-12-01 | C11: 97.3425 | D11: 97.3425
B12: 2014-03-01 | C12: 98.74611 | D12: 98.74611
B13: 2014-06-01 | C13: 103.3468 | D13: 103.3468
B14: 2014-09-01 | C14: 97.77891 | D14: 97.77891
B15: 2014-12-01 | C15: 73.15896 | D15: 73.15896
B16: 2015-03-01 | C16: 48.54228 | D16: 48.54228
B17: 2015-06-01 | C17: 57.8458 | D17: 57.8458
B18: 2015-09-01 | C18: 46.42026 | D18: 46.42026
B19: 2015-12-01 | C19: 41.95071 | D19: 41.95071
B20: 2016-03-01 | C20: 33.32431 | D20: 33.32431
B21: 2016-06-01 | C21: 45.44123 | D21: 45.44123
B22: 2016-09-01 | C22: 44.88214 | D22: 44.88214
B23: 2016-12-01 | C23: 49.20046 | D23: 49.20046
B24: 2017-03-01 | C24: 51.83439 | D24: 51.83439
B25: 2017-06-01 | C25: 48.25955 | D25: 48.25955
B26: 2017-09-01 | C26: 48.16259 | D26: 48.16259
B27: 2017-12-01 | C27: 55.39549 | D27: 55.39549
B28: 2018-03-01 | C28: 62.87476 | D28: 62.87476
B29: 2018-06-01 | C29: 67.85843 | D29: 67.85843
B30: 2018-09-01 | C30: 69.71905 | D30: 69.71905
B31: 2018-12-01 | C31: 58.90426 | D31: 58.90426
B32: 2019-03-01 | C32: 54.85216 | D32: 54.85216
B33: 2019-06-01 | C33: 59.78622 | D33: 59.78622
B34: 2019-09-01 | C34: 56.40461 | D34: 56.40461
B35: 2019-12-01 | C35: 56.91643 | D35: 56.91643
B36: 2020-03-01 | C36: 45.84144 | D36: 45.84144
B37: 2020-06-01 | C37: 27.82381 | D37: 27.82381
B38: 2020-09-01 | C38: 40.89072 | D38: 40.89072
B39: 2020-12-01 | C39: 42.50806 | D39: 42.50806
B40: 2021-03-01 | C40: 57.82445 | D40: 57.82445
B41: 2021-06-01 | C41: 66.09193 | D41: 66.09193
B42: 2021-09-01 | C42: 70.56268 | D42: 70.56268
B43: 2021-12-01 | C43: 77.43956 | D43: 77.43956
B44: 2022-03-01 | C44: 94.41229 | D44: 94.41229
B45: 2022-06-01 | C45: 108.5704 | D45: 108.5704
B46: 2022-09-01 | C46: 92.63111 | D46: 92.63111
B47: 2022-12-01 | C47: 82.78269 | D47: 82.78269
B48: 2023-03-01 | C48: 76.11568 | D48: 76.11568
B49: 2023-06-01 | C49: 73.76616 | D49: 73.76616
B50: 2023-09-01 | C50: 82.29965 | D50: 82.29965
B51: 2023-12-01 | C51: 78.34939 | D51: 78.34939
B52: 2024-03-01 | C52: 77.29388 | D52: 77.29388
B53: 2024-06-01 | C53: 81.04059 | D53: 81.04059
B54: 2024-09-01 | C54: 75.80379 | D54: 75.80379
B55: 2024-12-01 | C55: 70.27619 | D55: 70.27619
B56: 2025-03-01 | C56: 71.41552 | D56: 71.41552
B57: 2025-06-01 | C57: 63.74121 | D57: 63.74121
B58: 2025-09-01 | C58: 64.93201 | D58: 64.93201
B59: 2025-12-01 | C59: 58 | D59: 59.13847
B60: 2026-03-01 | C60: 59.5 | D60: 71.92664
B61: 2026-06-01 | C61: 60.85 | D61: 94.73 | E61: Forecast
B62: 2026-09-01 | C62: 62.065 | D62: 80.71
B63: 2026-12-01 | C63: 63.1585 | D63: 75.46
B64: 2027-03-01 | C64: 64.14265 | D64: 73.22
B65: 2027-06-01 | C65: 65.02839 | D65: 71.49
B66: 2027-09-01 | C66: 65.82555 | D66: 71.392
B67: 2027-12-01 | C67: 66.54299 | D67: 71.3136
B68: 2028-03-01 | C68: 67.18869 | D68: 71.25088
B69: 2028-06-01 | C69: 67.76982 | D69: 71.2007
B70: 2028-09-01 | C70: 68.29284 | D70: 71.16056
B71: 2028-12-01 | C71: 68.76356 | D71: 71.12845
B72: 2029-03-01 | C72: 69.1872 | D72: 71.10276
B73: 2029-06-01 | C73: 69.56848 | D73: 71.08221
B74: 2029-09-01 | C74: 69.91163 | D74: 71.06577
B75: 2029-12-01 | C75: 70.22047 | D75: 71.05261
B76: 2030-03-01 | C76: 70.49842 | D76: 71.04209
B77: 2030-06-01 | C77: 70.74858 | D77: 71.03367

Sheet Data 5
B1: Figure 5: Consumers price index inflation
B2: Sources: Stats NZ, the Treasury
C3: Annual percentage change
B4: Quarterly | C4: HYEFU 2025 | D4: BEFU 2026
B5: 2012-06-01 | C5: 0.9507346015 | D5: 0.9507346015
B6: 2012-09-01 | C6: 0.7745266607 | D6: 0.7745266607
B7: 2012-12-01 | C7: 0.9499136937 | D7: 0.9499136937
B8: 2013-03-01 | C8: 0.8591064391 | D8: 0.8591064391
B9: 2013-06-01 | C9: 0.6849315615 | D9: 0.6849315615
B10: 2013-09-01 | C10: 1.366353548 | D10: 1.366353548
B11: 2013-12-01 | C11: 1.625320785 | D11: 1.625320785
B12: 2014-03-01 | C12: 1.533219832 | D12: 1.533219832
B13: 2014-06-01 | C13: 1.615646256 | D13: 1.615646256
B14: 2014-09-01 | C14: 1.01095206 | D14: 1.01095206
B15: 2014-12-01 | C15: 0.7575757404 | D15: 0.7575757404
B16: 2015-03-01 | C16: 0.2516778466 | D16: 0.2516778466
B17: 2015-06-01 | C17: 0.4184099981 | D17: 0.4184099981
B18: 2015-09-01 | C18: 0.4170141347 | D18: 0.4170141347
B19: 2015-12-01 | C19: 0.08354222106 | D19: 0.08354222106
B20: 2016-03-01 | C20: 0.4184099981 | D20: 0.4184099981
B21: 2016-06-01 | C21: 0.4166667254 | D21: 0.4166667254
B22: 2016-09-01 | C22: 0.4152823486 | D22: 0.4152823486
B23: 2016-12-01 | C23: 1.335559269 | D23: 1.335559269
B24: 2017-03-01 | C24: 2.166666686 | D24: 2.166666686
B25: 2017-06-01 | C25: 1.742738549 | D25: 1.742738549
B26: 2017-09-01 | C26: 1.902398702 | D26: 1.902398702
B27: 2017-12-01 | C27: 1.594398659 | D27: 1.594398659
B28: 2018-03-01 | C28: 1.1 | D28: 1.1
B29: 2018-06-01 | C29: 1.5 | D29: 1.5
B30: 2018-09-01 | C30: 1.901298713 | D30: 1.901298713
B31: 2018-12-01 | C31: 1.888667992 | D31: 1.888667992
B32: 2019-03-01 | C32: 1.483679525 | D32: 1.483679525
B33: 2019-06-01 | C33: 1.674876847 | D33: 1.674877
B34: 2019-09-01 | C34: 1.46484375 | D34: 1.464844
B35: 2019-12-01 | C35: 1.853658537 | D35: 1.853659
B36: 2020-03-01 | C36: 2.53411306 | D36: 2.534113
B37: 2020-06-01 | C37: 1.453488372 | D37: 1.453488
B38: 2020-09-01 | C38: 1.443695861 | D38: 1.443696
B39: 2020-12-01 | C39: 1.436781609 | D39: 1.436782
B40: 2021-03-01 | C40: 1.520912548 | D40: 1.520913
B41: 2021-06-01 | C41: 3.342884432 | D41: 3.342884
B42: 2021-09-01 | C42: 4.933586338 | D42: 4.933586
B43: 2021-12-01 | C43: 5.949008499 | D43: 5.949008
B44: 2022-03-01 | C44: 6.928838951 | D44: 6.928839
B45: 2022-06-01 | C45: 7.3012939 | D45: 7.301294
B46: 2022-09-01 | C46: 7.233273056 | D46: 7.233273
B47: 2022-12-01 | C47: 7.219251337 | D47: 7.219251
B48: 2023-03-01 | C48: 6.654991243 | D48: 6.654991
B49: 2023-06-01 | C49: 6.029285099 | D49: 6.029285
B50: 2023-09-01 | C50: 5.649241147 | D50: 5.649241
B51: 2023-12-01 | C51: 4.655029094 | D51: 4.655029
B52: 2024-03-01 | C52: 4.022988506 | D52: 4.022989
B53: 2024-06-01 | C53: 3.330625508 | D53: 3.330626
B54: 2024-09-01 | C54: 2.154828412 | D54: 2.154828
B55: 2024-12-01 | C55: 2.223987292 | D55: 2.223987
B56: 2025-03-01 | C56: 2.525651144 | D56: 2.525651
B57: 2025-06-01 | C57: 2.672955975 | D57: 2.672956
B58: 2025-09-01 | C58: 3.046875 | D58: 3.046875
B59: 2025-12-01 | C59: 2.872245199 | D59: 3.108003
B60: 2026-03-01 | C60: 2.510069175 | D60: 3.079292
B61: 2026-06-01 | C61: 2.389438144 | D61: 3.960352 | E61: Forecast
B62: 2026-09-01 | C62: 2.334161292 | D62: 3.700206
B63: 2026-12-01 | C63: 2.315938767 | D63: 3.198579
B64: 2027-03-01 | C64: 2.263970673 | D64: 2.744844
B65: 2027-06-01 | C65: 2.216342635 | D65: 1.600675
B66: 2027-09-01 | C66: 2.173288638 | D66: 1.719089
B67: 2027-12-01 | C67: 2.134512078 | D67: 1.907426
B68: 2028-03-01 | C68: 2.102132924 | D68: 2.031999
B69: 2028-06-01 | C69: 2.07691199 | D69: 2.085271
B70: 2028-09-01 | C70: 2.059527371 | D70: 2.107254
B71: 2028-12-01 | C71: 2.04413624 | D71: 2.132689
B72: 2029-03-01 | C72: 2.031046072 | D72: 2.11562
B73: 2029-06-01 | C73: 2.019185932 | D73: 2.100607
B74: 2029-09-01 | C74: 2.008241149 | D74: 2.086185
B75: 2029-12-01 | C75: 2.001232022 | D75: 2.070532
B76: 2030-03-01 | C76: 1.997950944 | D76: 2.052598
B77: 2030-06-01 | C77: 1.998654071 | D77: 2.032467

Sheet Data 6
B1: Figure 6: Real production GDP growth
B2: Sources: Stats NZ, the Treasury
C3: Annual average percentage change
C4: HYEFU 2025 | D4: BEFU 2026
B5: 2012-06-01 | C5: 2.644104 | D5: 2.676231
B6: 2012-09-01 | C6: 2.64505 | D6: 2.641394
B7: 2012-12-01 | C7: 2.567007 | D7: 2.532182
B8: 2013-03-01 | C8: 2.361264 | D8: 2.296846
B9: 2013-06-01 | C9: 2.236826 | D9: 2.165667
B10: 2013-09-01 | C10: 2.445106 | D10: 2.396145
B11: 2013-12-01 | C11: 2.17386 | D11: 2.13449
B12: 2014-03-01 | C12: 2.60707 | D12: 2.58381
B13: 2014-06-01 | C13: 2.74834 | D13: 2.729396
B14: 2014-09-01 | C14: 2.984511 | D14: 2.948406
B15: 2014-12-01 | C15: 3.791411 | D15: 3.771599
B16: 2015-03-01 | C16: 3.814783 | D16: 3.806188
B17: 2015-06-01 | C17: 4.083937 | D17: 4.096413
B18: 2015-09-01 | C18: 4.065399 | D18: 4.105249
B19: 2015-12-01 | C19: 3.612999 | D19: 3.653337
B20: 2016-03-01 | C20: 3.705522 | D20: 3.74531
B21: 2016-06-01 | C21: 3.747659 | D21: 3.77265
B22: 2016-09-01 | C22: 3.892302 | D22: 3.895171
B23: 2016-12-01 | C23: 3.970988 | D23: 3.95496
B24: 2017-03-01 | C24: 3.795837 | D24: 3.759151
B25: 2017-06-01 | C25: 3.569321 | D25: 3.525711
B26: 2017-09-01 | C26: 3.268022 | D26: 3.221705
B27: 2017-12-01 | C27: 3.334242 | D27: 3.283569
B28: 2018-03-01 | C28: 3.383316 | D28: 3.320447
B29: 2018-06-01 | C29: 3.490306 | D29: 3.396835
B30: 2018-09-01 | C30: 3.492333 | D30: 3.369978
B31: 2018-12-01 | C31: 3.474767 | D31: 3.332179
B32: 2019-03-01 | C32: 3.474424 | D32: 3.324555
B33: 2019-06-01 | C33: 3.196473 | D33: 3.073225
B34: 2019-09-01 | C34: 3.253924 | D34: 3.1627
B35: 2019-12-01 | C35: 3.030279 | D35: 2.981274
B36: 2020-03-01 | C36: 2.310238 | D36: 2.315632
B37: 2020-06-01 | C37: -0.811735 | D37: -0.773618
B38: 2020-09-01 | C38: -1.069142 | D38: -1.002404
B39: 2020-12-01 | C39: -1.357693 | D39: -1.2696
B40: 2021-03-01 | C40: -0.344249 | D40: -0.276956
B41: 2021-06-01 | C41: 6.239691 | D41: 6.256614
B42: 2021-09-01 | C42: 5.407808 | D42: 5.337485
B43: 2021-12-01 | C43: 5.681097 | D43: 5.511113
B44: 2022-03-01 | C44: 4.554978 | D44: 4.331113
B45: 2022-06-01 | C45: 0.703297 | D45: 0.445766
B46: 2022-09-01 | C46: 2.731643 | D46: 2.449328
B47: 2022-12-01 | C47: 2.859548 | D47: 2.616091
B48: 2023-03-01 | C48: 3.479082 | D48: 3.32819
B49: 2023-06-01 | C49: 3.970334 | D49: 3.98666
B50: 2023-09-01 | C50: 2.349475 | D50: 2.571192
B51: 2023-12-01 | C51: 1.803734 | D51: 2.181054
B52: 2024-03-01 | C52: 1.383072 | D52: 1.811987
B53: 2024-06-01 | C53: 0.58744 | D53: 1.082469
B54: 2024-09-01 | C54: -0.014198 | D54: 0.479983
B55: 2024-12-01 | C55: -0.602751 | D55: -0.287036
B56: 2025-03-01 | C56: -1.061989 | D56: -0.858416
B57: 2025-06-01 | C57: -1.091306 | D57: -1.135886
B58: 2025-09-01 | C58: -0.466512 | D58: -0.564866
B59: 2025-12-01 | C59: 0.213209 | D59: 0.176489
B60: 2026-03-01 | C60: 0.696507 | D60: 0.52758 | E60: Forecast
B61: 2026-06-01 | C61: 1.676304 | D61: 1.232359
B62: 2026-09-01 | C62: 2.400897 | D62: 1.345916
B63: 2026-12-01 | C63: 2.974225 | D63: 1.537921
B64: 2027-03-01 | C64: 3.476425 | D64: 1.998734
B65: 2027-06-01 | C65: 3.395894 | D65: 2.330661
B66: 2027-09-01 | C66: 3.141339 | D66: 2.768352
B67: 2027-12-01 | C67: 2.894909 | D67: 3.06571
B68: 2028-03-01 | C68: 2.701429 | D68: 3.231947
B69: 2028-06-01 | C69: 2.586144 | D69: 3.213013
B70: 2028-09-01 | C70: 2.535602 | D70: 3.108322
B71: 2028-12-01 | C71: 2.520224 | D71: 2.973792
B72: 2029-03-01 | C72: 2.525265 | D72: 2.845836
B73: 2029-06-01 | C73: 2.534695 | D73: 2.737226
B74: 2029-09-01 | C74: 2.535413 | D74: 2.659785
B75: 2029-12-01 | C75: 2.529446 | D75: 2.606391
B76: 2030-03-01 | C76: 2.520073 | D76: 2.558347
B77: 2030-06-01 | C77: 2.516533 | D77: 2.512364

Sheet Table 2
B1: Table 2: Changes in nominal GDP and core Crown revenue forecasts
B2: Source: The Treasury
B4: Year ending 30 June
B5: $billions | C5: 2026 Forecast | D5: 2027 Forecast | E5: 2028 Forecast | F5: 2029 Forecast | G5: 2030 Forecast
B6: Nominal GDP
B7: BEFU 2026 | C7: 452.2 | D7: 474.9 | E7: 503.7 | F7: 529.8 | G7: 554.4
B8: HYEFU 2025 | C8: 454.5 | D8: 479 | E8: 502.2 | F8: 526.2 | G8: 551.1
B9: Change | C9: =C7-C8 -> -2.3 | D9: =D7-D8 -> -4.1 | E9: 1.5 | F9: 3.6 | G9: 3.3
B11: Core Crown tax revenue
B12: BEFU 2026 | C12: 124.8073889 | D12: 132.9867314 | E12: 142.2316509 | F12: 151.6016909 | G12: 159.7061645
B13: HYEFU 2025 | C13: 124.2 | D13: 132.2 | E13: 140.2 | F13: 148.4 | G13: 156.6
B14: Change | C14: =C12-C13 -> 0.6073889326 | D14: =D12-D13 -> 0.7867313543 | E14: 2.031650894 | F14: 3.201690875 | G14: 3.106164456

Sheet Data 7
B1: Figure 7: Core Crown expenses
B2: Source: The Treasury
C3: % of GDP
B4: Year ending 30 June | C4: HYEFU 2025 | D4: BEFU 2026
B5: 2012 | C5: 32.07658664 | D5: 32.04110468
B6: 2013 | C6: 31.97488151 | D6: 31.92906073
B7: 2014 | C7: 30.03958908 | D7: 30.03654656
B8: 2015 | C8: 29.43116744 | D8: 29.44374143
B9: 2016 | C9: 28.55195267 | D9: 28.56309427
B10: 2017 | C10: 27.683833 | D10: 27.68985792
B11: 2018 | C11: 27.26251539 | D11: 27.26860469
B12: 2019 | C12: 28.02100955 | D12: 28.03555424
B13: 2020 | C13: 34.27239805 | D13: 34.23724975
B14: 2021 | C14: 31.39043757 | D14: 31.35025688
B15: 2022 | C15: 34.36457228 | D15: 34.3935462
B16: 2023 | C16: 31.76801634 | D16: 31.74722466
B17: 2024 | C17: 33.08239539 | D17: 33.02768425
B18: 2025 | C18: 32.49113617 | D18: 32.57091228
B19: 2026 | C19: 32.79383582 | D19: 32.56355953 | E19: Forecast
B20: 2027 | C20: 32.0393579 | D20: 32.59965527
B21: 2028 | C21: 31.38851667 | D21: 31.52169792
B22: 2029 | C22: 30.90669991 | D22: 30.72009247
B23: 2030 | C23: 30.47621986 | D23: 30.28337499

Sheet Data 8
B1: Figure 8: OBEGALx
B2: Source: The Treasury
C3: % of GDP
B4: Year ending 30 June | C4: HYEFU 2025 | D4: BEFU 2026
B5: 2012 | C5: -5.5 | D5: -5.5
B6: 2013 | C6: -2.7 | D6: -2.7
B7: 2014 | C7: -1.6 | D7: -1.6
B8: 2015 | C8: 0.1 | D8: 0.1
B9: 2016 | C9: 0.8 | D9: 0.8
B10: 2017 | C10: 1.7 | D10: 1.7
B11: 2018 | C11: 2 | D11: 2
B12: 2019 | C12: 2.7 | D12: 2.7
B13: 2020 | C13: -6.6 | D13: -6.6
B14: 2021 | C14: -0.7 | D14: -0.7
B15: 2022 | C15: -2.4 | D15: -2.4
B16: 2023 | C16: -1.8 | D16: -1.8
B17: 2024 | C17: -2.1 | D17: -2.1
B18: 2025 | C18: -2.1 | D18: -2.1
B19: 2026 | C19: -3 | D19: -2.6 | E19: Forecast
B20: 2027 | C20: -2.2 | D20: -2.4
B21: 2028 | C21: -1 | D21: -0.8
B22: 2029 | C22: -0.2 | D22: 0.5
B23: 2030 | C23: 0.4 | D23: 1.1

Sheet Table 3
B1: Table 3: Changes in OBEGALx forecasts between HYEFU 2025 and BEFU 2026
B2: Source: The Treasury
B4: Year ending 30 June | C4: 2026 | D4: 2027 | E4: 2028 | F4: 2029 | G4: 2030
B5: $billions | C5: Forecast | D5: Forecast | E5: Forecast | F5: Forecast | G5: Forecast
B6: OBEGALx – 2025 HYEFU | C6: -13.9 | D6: -10.4 | E6: -5.1 | F6: -0.9 | G6: 2.3
B7: Tax revenue (excluding Budget 2026 decisions) | C7: 0.6 | D7: 0.8 | E7: 1.9 | F7: 3.1 | G7: 3
B8: Benefit expenses (excluding Budget 2026 decisions) | C8: 0.1 | D8: -0.4 | E8: -0.7 | F8: -0.7 | G8: -0.6
B9: Net finance costs | C9: -0.1 | D9: -0.1 | E9: 0.2 | F9: 0.2 | G9: 0.1
B10: Budget 2026 package impact | C10: 0.2 | D10: -1.2 | E10: 0.2 | F10: 1.1 | G10: 1.1
B11: Other movements | C11: =C13-C6-SUM(C7:C10) -> 1.2 | D11: =D13-D6-SUM(D7:D10) -> -0.1 | E11: =E13-E6-SUM(E7:E10) -> -0.8 | F11: =F13-F6-SUM(F7:F10) -> -0.2 | G11: =G13-G6-SUM(G7:G10) -> 0.2
B12: Total movement | C12: =C13-C6 -> 2 | D12: =D13-D6 -> -1 | E12: =E13-E6 -> 0.8 | F12: =F13-F6 -> 3.5 | G12: =G13-G6 -> 3.8
B13: OBEGALx – 2026 BEFU | C13: -11.9 | D13: -11.4 | E13: -4.3 | F13: 2.6 | G13: 6.1

Sheet Data 9
B1: Figure 9: Net core Crown debt
B2: Source: The Treasury
C3: % of GDP
B4: Year ending 30 June | C4: HYEFU 2025 | D4: BEFU 2026
B5: 2012 | C5: 23.6 | D5: 23.6
B6: 2013 | C6: 25.5 | D6: 25.5
B7: 2014 | C7: 25.3 | D7: 25.3
B8: 2015 | C8: 24.7 | D8: 24.7
B9: 2016 | C9: 23.9 | D9: 23.9
B10: 2017 | C10: 21.6 | D10: 21.6
B11: 2018 | C11: 19.5 | D11: 19.5
B12: 2019 | C12: 18.6 | D12: 18.6
B13: 2020 | C13: 26.3 | D13: 26.2
B14: 2021 | C14: 29.7 | D14: 29.7
B15: 2022 | C15: 35.2 | D15: 35.3
B16: 2023 | C16: 38.7 | D16: 38.6
B17: 2024 | C17: 41.8 | D17: 41.7
B18: 2025 | C18: 41.8 | D18: 41.9
B19: 2026 | C19: 43.3 | D19: 42.4 | E19: Forecast
B20: 2027 | C20: 46 | D20: 45.6
B21: 2028 | C21: 46.9 | D21: 46.1
B22: 2029 | C22: 46.9 | D22: 45.6
B23: 2030 | C23: 46.1 | D23: 44.4

Sheet Data 10
B1: Figure 10: General government net debt
B2: Source: IMF Fiscal Monitor April 2026
C3: % of GDP
B4: Year | C4: New Zealand | D4: Small and medium advanced economies median
B5: 2015 | C5: 7.3378013 | D5: 34.62887479
B6: 2016 | C6: 6.626980112 | D6: 33.66650439
B7: 2017 | C7: 5.550998754 | D7: 33.02094587
B8: 2018 | C8: 4.722904 | D8: 30.28942906
B9: 2019 | C9: 6.862466288 | D9: 29.93523941
B10: 2020 | C10: 10.32686106 | D10: 37.19425028
B11: 2021 | C11: 13.95704309 | D11: 37.38986056
B12: 2022 | C12: 17.97797302 | D12: 34.78886109
B13: 2023 | C13: 19.54044464 | D13: 34.84557286
B14: 2024 | C14: 22.44939183 | D14: 33.44838237
B15: 2025 | C15: 25.81494533 | D15: 34.07921228
B16: 2026 | C16: 27.9038337 | D16: 34.23545934 | E16: Forecast
B17: 2027 | C17: 29.11485866 | D17: 34.79963493
B18: 2028 | C18: 29.17202185 | D18: 35.39762469
B19: 2029 | C19: 28.49005123 | D19: 36.41099744
B20: 2030 | C20: 27.4183648 | D20: 37.10562539
B21: 2031 | C21: 26.9403462 | D21: 36.82636855
B24: Note: In these charts, small and medium advanced economies are advanced economies excluding the United States, the United Kingdom, Japan, Canada, France, Germany and Italy, and excluding some economies with missing data. The IMF’s data does not incorporate the latest BEFU forecasts.

Sheet Data 11
B1: Figure 11: Overall balance
B2: Source: IMF Fiscal Monitor April 2026
C3: % of GDP
B4: Year | C4: New Zealand | D4: Small and medium advanced economies median
B5: 2015 | C5: 0.3736098814 | D5: -0.8667346657
B6: 2016 | C6: 0.9829823753 | D6: 0.1296154289
B7: 2017 | C7: 1.383037762 | D7: 0.9310136241
B8: 2018 | C8: 1.311715633 | D8: 0.5975196731
B9: 2019 | C9: -2.435567695 | D9: 0.3784357313
B10: 2020 | C10: -4.21370831 | D10: -5.612258747
B11: 2021 | C11: -3.349650676 | D11: -2.631220924
B12: 2022 | C12: -3.962349612 | D12: -0.8985288951
B13: 2023 | C13: -3.224986698 | D13: -1.024406428
B14: 2024 | C14: -3.207106103 | D14: -1.366785657
B15: 2025 | C15: -3.859910044 | D15: -1.933539344
B16: 2026 | C16: -3.917993658 | D16: -2.198757484 | E16: Forecast
B17: 2027 | C17: -3.146654464 | D17: -2.058215075
B18: 2028 | C18: -2.12657199 | D18: -1.974637345
B19: 2029 | C19: -1.304720185 | D19: -1.480810706
B20: 2030 | C20: -0.9176222957 | D20: -1.347353222
B21: 2031 | C21: -0.6248651922 | D21: -1.515235852
B24: Note: In these charts, small and medium advanced economies are advanced economies excluding the United States, the United Kingdom, Japan, Canada, France, Germany and Italy, and excluding some economies with missing data. The IMF’s data does not incorporate the latest BEFU forecasts.

Sheet Data 12
B1: Figure 12: Funding of the Budget 2026 operating package
B2: Source: The Treasury
C3: $billions, average per annum
B4: Category | C4: Gross cost | D4: Funding
B5: New spending initiatives | C5: 3.8
B6: Budget allowance | D6: 2.1
B7: Savings and revenue raising initiatives | D7: 1.7

Sheet Data 13
B1: Figure 13: Operating allowances
B2: Source: The Treasury
C3: $billions (average per annum)
B4: Budget | C4: Budget operating allowance/package
B5: 2006 | C5: 2.5
B6: 2007 | C6: 2.5
B7: 2008 | C7: 2.299
B8: 2009 | C8: 1.45
B9: 2010 | C9: 1.1
B10: 2011 | C10: -0.296
B11: 2012 | C11: 0.179
B12: 2013 | C12: 0.9
B13: 2014 | C13: 1
B14: 2015 | C14: 1
B15: 2016 | C15: 1.6
B16: 2017 | C16: 1.8
B17: 2018 | C17: 2.848
B18: 2019 | C18: 3.8
B19: 2020 | C19: 3.3
B20: 2021 | C20: 3.8
B21: 2022 | C21: 5.9
B22: 2023 | C22: 4.8
B23: 2024 | C23: 3.2
B24: 2025 | C24: 1.3
B25: 2026 | C25: 2.1
B26: 2027 | C26: 2.4 | D26: Forecast
B27: 2028 | C27: 2.4
B28: 2029 | C28: 2.4

Sheet Data 14
B1: Figure 14: Net worth attributable to the Crown for 2024/25 by entity
B2: Source: The Treasury
C4: $ billions
B5: Entity | C5: Assets | D5: Liabilities | E5: Net worth attributable to the Crown
B6: Reserve Bank | C6: 49.3 | D6: -43.3 | E6: 6
B7: New Zealand Debt Management | C7: 45.4 | D7: -225.1 | E7: -179.7
B8: NZSF | C8: 87.4 | D8: -4.5 | E8: 82.9
B9: ACC | C9: 60 | D9: -73.8 | E9: -13.8
B10: NZ Transport Agency | C10: 90.5 | D10: -6.2 | E10: 84.3
B11: Kāinga Ora | C11: 47.7 | D11: -19.8 | E11: 27.9
B12: Kiwi Group Capital | C12: 40.5 | D12: -37.4 | E12: 3.1
B13: Other departments | C13: 184.3 | D13: -41.9 | E13: 142.4
B14: Other Crown entities | C14: 64.5 | D14: -17.2 | E14: 47.3
B15: State-owned enterprises | C15: 72 | D15: -27 | E15: 35.1
B18: Note: This chart displays unconsolidated net worth attributable to the Crown. It does not sum to the overall net worth attributable to the Crown because inter-entity balances are eliminated in the consolidated accounts (e.g. ACC’s holdings of Government bonds).

Sheet Table A1.1
B1: Table A1.1: BEFU fiscal forecasts
B2: Source: The Treasury
B4: Year ending 30 June | C4: 2025 Actual | D4: 2026 Forecast | E4: 2027 Forecast | F4: 2028 Forecast | G4: 2029 Forecast | H4: 2030 Forecast
B5: $billions
B6: Core Crown tax revenue | C6: 121.698 | D6: 124.807 | E6: 132.986 | F6: 142.229 | G6: 151.601 | H6: 159.705
B7: Core Crown revenue | C7: 134.411 | D7: 137.235 | E7: 145.59 | F7: 155.575 | G7: 165.562 | H7: 174.255
B8: Total Crown revenue | C8: 169.811 | D8: 171.99 | E8: 184.053 | F8: 195.731 | G8: 207.536 | H8: 217.653
B9: Core Crown expenses | C9: 141.675 | D9: 147.239 | E9: 154.823 | F9: 158.788 | G9: 162.767 | H9: 167.892
B10: Total Crown expenses | C10: 183.502 | D10: 186.836 | E10: 197.953 | F10: 202.781 | G10: 207.695 | H10: 214.217
B11: OBEGALx | C11: -9.306 | D11: -11.937 | E11: -11.441 | F11: -4.276 | G11: 2.585 | H11: 6.115
B12: Operating balance | C12: -4.4 | D12: -4.137 | E12: -8.112 | F12: -0.57 | G12: 6.72 | H12: 10.985
B13: Net core Crown debt | C13: 182.171 | D13: 191.761 | E13: 216.481 | F13: 232.42 | G13: 241.357 | H13: 246.116
B14: Total borrowings | C14: 272.085 | D14: 289.289 | E14: 318.823 | F14: 339.348 | G14: 353.466 | H14: 364.116
B15: Gross debt | C15: 203.688 | D15: 223.761 | E15: 250.22 | F15: 267.13 | G15: 278.379 | H15: 284.278
B16: Net worth | C16: 189.128 | D16: 185.332 | E16: 189.755 | F16: 189.492 | G16: 196.377 | H16: 207.347
B17: Net worth attributable to the Crown | C17: 179.26 | D17: 175.459 | E17: 179.885 | F17: 179.369 | G17: 186.162 | H17: 197.198
B18: Core Crown residual cash | C18: -5.996 | D18: -9.314 | E18: -24.221 | F18: -15.636 | G18: -8.842 | H18: -4.492
B19: % of GDP
B20: Core Crown tax revenue | C20: 28 | D20: 27.6 | E20: 28 | F20: 28.2 | G20: 28.6 | H20: 28.8
B21: Core Crown revenue | C21: 30.9 | D21: 30.4 | E21: 30.7 | F21: 30.9 | G21: 31.2 | H21: 31.4
B22: Total Crown revenue | C22: 39 | D22: 38 | E22: 38.8 | F22: 38.9 | G22: 39.2 | H22: 39.3
B23: Core Crown expenses | C23: 32.6 | D23: 32.6 | E23: 32.6 | F23: 31.5 | G23: 30.7 | H23: 30.3
B24: Total Crown expenses | C24: 42.2 | D24: 41.3 | E24: 41.7 | F24: 40.3 | G24: 39.2 | H24: 38.6
B25: OBEGALx | C25: -2.1 | D25: -2.6 | E25: -2.4 | F25: -0.8 | G25: 0.5 | H25: 1.1
B26: Operating balance | C26: -1 | D26: -0.9 | E26: -1.7 | F26: -0.1 | G26: 1.3 | H26: 2
B27: Net core Crown debt | C27: 41.9 | D27: 42.4 | E27: 45.6 | F27: 46.1 | G27: 45.6 | H27: 44.4
B28: Total borrowings | C28: 62.6 | D28: 64 | E28: 67.1 | F28: 67.4 | G28: 66.7 | H28: 65.7
B29: Gross debt | C29: 46.8 | D29: 49.5 | E29: 52.7 | F29: 53 | G29: 52.5 | H29: 51.3
B30: Net worth | C30: 43.5 | D30: 41 | E30: 40 | F30: 37.6 | G30: 37.1 | H30: 37.4
B31: Net worth attributable to the Crown | C31: 41.2 | D31: 38.8 | E31: 37.9 | F31: 35.6 | G31: 35.1 | H31: 35.6
B32: Core Crown residual cash | C32: -1.4 | D32: -2.1 | E32: -5.1 | F32: -3.1 | G32: -1.7 | H32: -0.8

Sheet Data A2.1
B1: Figure A2.1: Net core Crown debt
B2: Source: The Treasury
C4: % of GDP
B5: Year ending 30 June | C5: Scenario 1 | D5: Scenario 2 | E5: Scenario 3 | F5: Scenario 4
B6: 2019 | C6: 18.61406823 | D6: 18.61406823 | E6: 18.61406823 | F6: 18.61406823
B7: 2020 | C7: 26.22878103 | D7: 26.22878103 | E7: 26.22878103 | F7: 26.22878103
B8: 2021 | C8: 29.69669112 | D8: 29.69669112 | E8: 29.69669112 | F8: 29.69669112
B9: 2022 | C9: 35.27828877 | D9: 35.27828877 | E9: 35.27828877 | F9: 35.27828877
B10: 2023 | C10: 38.64021521 | D10: 38.64021521 | E10: 38.64021521 | F10: 38.64021521
B11: 2024 | C11: 41.69246744 | D11: 41.69246744 | E11: 41.69246744 | F11: 41.69246744
B12: 2025 | C12: 41.88089403 | D12: 41.88089403 | E12: 41.88089403 | F12: 41.88089403
B13: 2026 | C13: 42.41008141 | D13: 42.41008141 | E13: 42.41008141 | F13: 42.41008141 | G13: Forecast
B14: 2027 | C14: 45.58243248 | D14: 45.58243248 | E14: 45.58243248 | F14: 45.58243248
B15: 2028 | C15: 46.13869798 | D15: 46.13869798 | E15: 46.13869798 | F15: 46.13869798
B16: 2029 | C16: 45.55289437 | D16: 45.55289437 | E16: 45.55289437 | F16: 45.55289437
B17: 2030 | C17: 44.39297767 | D17: 44.39297767 | E17: 44.39297767 | F17: 44.39297767
B18: 2031 | C18: 42.47364932 | D18: 42.72114202 | E18: 43.04332236 | F18: 43.16706871 | G18: Projection
B19: 2032 | C19: 40.37460536 | D19: 41.1090342 | E19: 42.02174385 | F19: 42.38895827
B20: 2033 | C20: 38.11080148 | D20: 39.51601963 | E20: 41.23347049 | F20: 41.91168858
B21: 2034 | C21: 35.59107347 | D21: 37.81470353 | E21: 40.47743589 | F21: 41.5011889
B22: 2035 | C22: 32.90284599 | D22: 36.05872034 | E22: 39.7940681 | F22: 41.16711579
B23: 2036 | C23: 30.07509391 | D23: 34.27533036 | E23: 39.20055149 | F23: 40.92717731
B24: 2037 | C24: 27.12301762 | D24: 32.47790267 | E24: 38.70037247 | F24: 40.78519394
B25: 2038 | C25: 24.06805104 | D25: 30.68774143 | E25: 38.30545973 | F25: 40.75395317
B26: 2039 | C26: 20.92222718 | D26: 28.91601939 | E26: 38.02085084 | F26: 40.83890135
B27: 2040 | C27: 17.69211763 | D27: 27.1673347 | E27: 37.84358946 | F27: 41.03702063

Sheet Data A2.2
B1: Figure A2.2: OBEGALx
B2: Source: The Treasury
C4: % of GDP
B5: Year ending 30 June | C5: Scenario 1 | D5: Scenario 2 | E5: Scenario 3 | F5: Scenario 4
B6: 2019 | C6: 2.741686924 | D6: 2.741686924 | E6: 2.741686924 | F6: 2.741686924
B7: 2020 | C7: -6.575520014 | D7: -6.575520014 | E7: -6.575520014 | F7: -6.575520014
B8: 2021 | C8: -0.7444536891 | D8: -0.7444536891 | E8: -0.7444536891 | F8: -0.7444536891
B9: 2022 | C9: -2.371723277 | D9: -2.371723277 | E9: -2.371723277 | F9: -2.371723277
B10: 2023 | C10: -1.791495684 | D10: -1.791495684 | E10: -1.791495684 | F10: -1.791495684
B11: 2024 | C11: -2.08457585 | D11: -2.08457585 | E11: -2.08457585 | F11: -2.08457585
B12: 2025 | C12: -2.139438219 | D12: -2.139438219 | E12: -2.139438219 | F12: -2.139438219
B13: 2026 | C13: -2.640000531 | D13: -2.640000531 | E13: -2.640000531 | F13: -2.640000531 | G13: Forecast
B14: 2027 | C14: -2.409027167 | D14: -2.409027167 | E14: -2.409027167 | F14: -2.409027167
B15: 2028 | C15: -0.8488472274 | D15: -0.8488472274 | E15: -0.8488472274 | F15: -0.8488472274
B16: 2029 | C16: 0.4878840553 | D16: 0.4878840553 | E16: 0.4878840553 | F16: 0.4878840553
B17: 2030 | C17: 1.102988259 | D17: 1.102988259 | E17: 1.102988259 | F17: 1.102988259
B18: 2031 | C18: 1.285675753 | D18: 1.159173337 | E18: 0.7160027108 | F18: 0.713246645 | G18: Projection
B19: 2032 | C19: 1.587600198 | D19: 1.328315459 | E19: 0.4867066015 | F19: 0.4759790799
B20: 2033 | C20: 1.867357782 | D20: 1.470199472 | E20: 0.3253671543 | F20: 0.3028111498
B21: 2034 | C21: 2.145870009 | D21: 1.607651507 | E21: 0.2575802747 | F21: 0.2212465004
B22: 2035 | C22: 2.423955617 | D22: 1.742900283 | E22: 0.2258822112 | F22: 0.1752213305
B23: 2036 | C23: 2.666865326 | D23: 1.840512985 | E23: 0.161724402 | F23: 0.09624192295
B24: 2037 | C24: 2.884802603 | D24: 1.911228418 | E24: 0.07644292829 | F24: -0.004053095581
B25: 2038 | C25: 3.095107963 | D25: 1.972008487 | E25: -0.01185182313 | F25: -0.1075878226
B26: 2039 | C26: 3.307161284 | D26: 2.03207179 | E26: -0.09787177198 | F26: -0.2090917075
B27: 2040 | C27: 3.525633715 | D27: 2.096136068 | E27: -0.1763964392 | F27: -0.3033429526

Sheet Data A2.3
B1: Figure A2.3: Core Crown expenses
B2: Source: The Treasury
C4: % of GDP
B5: Year ending 30 June | C5: Scenario 1 | D5: Scenario 2 | E5: Scenario 3 | F5: Scenario 4
B6: 2019 | C6: 28.03555424 | D6: 28.03555424 | E6: 28.03555424 | F6: 28.03555424
B7: 2020 | C7: 34.23724975 | D7: 34.23724975 | E7: 34.23724975 | F7: 34.23724975
B8: 2021 | C8: 31.35025688 | D8: 31.35025688 | E8: 31.35025688 | F8: 31.35025688
B9: 2022 | C9: 34.3935462 | D9: 34.3935462 | E9: 34.3935462 | F9: 34.3935462
B10: 2023 | C10: 31.74722466 | D10: 31.74722466 | E10: 31.74722466 | F10: 31.74722466
B11: 2024 | C11: 33.02768425 | D11: 33.02768425 | E11: 33.02768425 | F11: 33.02768425
B12: 2025 | C12: 32.57091228 | D12: 32.57091228 | E12: 32.57091228 | F12: 32.57091228
B13: 2026 | C13: 32.56354512 | D13: 32.56354512 | E13: 32.56354512 | F13: 32.56354512 | G13: Forecast
B14: 2027 | C14: 32.599669 | D14: 32.599669 | E14: 32.599669 | F14: 32.599669
B15: 2028 | C15: 31.52169166 | D15: 31.52169166 | E15: 31.52169166 | F15: 31.52169166
B16: 2029 | C16: 30.72008667 | D16: 30.72008667 | E16: 30.72008667 | F16: 30.72008667
B17: 2030 | C17: 30.28338591 | D17: 30.28338591 | E17: 30.28338591 | F17: 30.28338591
B18: 2031 | C18: 29.93481782 | D18: 30.06132023 | E18: 30.50449086 | F18: 30.50724693 | G18: Projection
B19: 2032 | C19: 29.55072257 | D19: 29.81000731 | E19: 30.65161617 | F19: 30.66234369
B20: 2033 | C20: 29.22615922 | D20: 29.62331753 | E20: 30.76814985 | F20: 30.79070585
B21: 2034 | C21: 28.93369473 | D21: 29.47191323 | E21: 30.82198446 | F21: 30.85831824
B22: 2035 | C22: 28.64668853 | D22: 29.32774387 | E22: 30.84476194 | F22: 30.89542282
B23: 2036 | C23: 28.39307264 | D23: 29.21942498 | E23: 30.89821356 | F23: 30.96369604
B24: 2037 | C24: 28.1417659 | D24: 29.11534009 | E24: 30.95012558 | F24: 31.0306216
B25: 2038 | C25: 27.89203647 | D25: 29.01513595 | E25: 30.99899626 | F25: 31.09473226
B26: 2039 | C26: 27.6448078 | D26: 28.9198973 | E26: 31.04984086 | F26: 31.16106079
B27: 2040 | C27: 27.39481711 | D27: 28.82431476 | E27: 31.09684727 | F27: 31.22379378

Sheet Table A2.1
B1: Table A2.1: Fiscal indicators from Scenario 1
B2: Source: The Treasury
B5: Year ending 30 June | C5: 2030 | D5: 2032 | E5: 2034 | F5: 2036 | G5: 2038 | H5: 2040
C6: Forecast | D6: Projection | E6: Projection | F6: Projection | G6: Projection | H6: Projection
B7: % of GDP
B8: Core Crown revenue | C8: 31.43110697 | D8: 31.13059627 | E8: 31.03875796 | F8: 30.97395611 | G8: 30.90938368 | H8: 30.8539669
B9: Total Crown revenue | C9: 39.25898669 | D9: 39.0012346 | E9: 38.94759133 | F9: 38.92133621 | G9: 38.81900314 | H9: 38.72450202
B10: Core Crown expenses | C10: 30.28338591 | D10: 29.55072257 | E10: 28.93369473 | F10: 28.39307264 | G10: 27.89203647 | H10: 27.39481711
B11: Total Crown expenses | C11: 38.63922093 | D11: 37.82980621 | E11: 37.14359778 | F11: 36.50292767 | G11: 35.95224005 | H11: 35.40745501
B12: OBEGALx | C12: 1.102988259 | D12: 1.587600198 | E12: 2.145870009 | F12: 2.666865326 | G12: 3.095107963 | H12: 3.525633715
B13: Operating balance | C13: 1.981410635 | D13: 2.497951782 | E13: 3.185076581 | F13: 3.855536359 | G13: 4.357792811 | H13: 4.863411288
B14: Net core Crown debt | C14: 44.39297767 | D14: 40.37460536 | E14: 35.59107347 | F14: 30.07509391 | G14: 24.06805104 | H14: 17.69211763
B15: Total borrowings | C15: 65.67713378 | D15: 62.54465066 | E15: 58.3815646 | F15: 53.19806857 | G15: 47.36244715 | H15: 41.0640748
B16: Net worth | C16: 37.40005014 | D16: 39.06838888 | E16: 42.05267877 | F16: 46.19319998 | G16: 51.10734785 | H16: 56.6969517
B17: Net worth attributable to the Crown | C17: 35.56943234 | D17: 37.42308804 | E17: 40.55649796 | F17: 44.80936354 | G17: 49.81758401 | H17: 55.49005752

Sheet Table A2.2
B1: Table A2.2: Fiscal indicators from Scenario 2
B2: Source: The Treasury
B5: Year ending 30 June | C5: 2030 | D5: 2032 | E5: 2034 | F5: 2036 | G5: 2038 | H5: 2040
C6: Forecast | D6: Projection | E6: Projection | F6: Projection | G6: Projection | H6: Projection
B7: % of GDP
B8: Core Crown revenue | C8: 31.43110697 | D8: 31.13059627 | E8: 31.03875796 | F8: 30.97395611 | G8: 30.90938368 | H8: 30.8539669
B9: Total Crown revenue | C9: 39.25898669 | D9: 39.0012346 | E9: 38.94759133 | F9: 38.92133621 | G9: 38.81900314 | H9: 38.72450202
B10: Core Crown expenses | C10: 30.28338591 | D10: 29.81000731 | E10: 29.47191323 | F10: 29.21942498 | G10: 29.01513595 | H10: 28.82431476
B11: Total Crown expenses | C11: 38.63922093 | D11: 38.08909095 | E11: 37.68181628 | F11: 37.32928002 | G11: 37.07533953 | H11: 36.83695266
B12: OBEGALx | C12: 1.102988259 | D12: 1.328315459 | E12: 1.607651507 | F12: 1.840512985 | G12: 1.972008487 | H12: 2.096136068
B13: Operating balance | C13: 1.981410635 | D13: 2.238667043 | E13: 2.646858079 | F13: 3.029184018 | G13: 3.234693335 | H13: 3.43391364
B14: Net core Crown debt | C14: 44.39297767 | D14: 41.1090342 | E14: 37.81470353 | F14: 34.27533036 | G14: 30.68774143 | H14: 27.1673347
B15: Total borrowings | C15: 65.67713378 | D15: 63.27907951 | E15: 60.60519466 | F15: 57.39830502 | G15: 53.98213754 | H15: 50.53929186
B16: Net worth | C16: 37.40005014 | D16: 38.68780421 | E16: 40.78249312 | F16: 43.54056372 | G16: 46.59763446 | H16: 49.86799721
B17: Net worth attributable to the Crown | C17: 35.56943234 | D17: 37.04250338 | E17: 39.28631231 | F17: 42.15672727 | G17: 45.30787062 | H17: 48.66110303

Sheet Table A2.3
B1: Table A2.3: Fiscal indicators from Scenario 3
B2: Source: The Treasury
B5: Year ending 30 June | C5: 2030 | D5: 2032 | E5: 2034 | F5: 2036 | G5: 2038 | H5: 2040
C6: Forecast | D6: Projection | E6: Projection | F6: Projection | G6: Projection | H6: Projection
B7: % of GDP
B8: Core Crown revenue | C8: 31.43110697 | D8: 31.13059627 | E8: 31.03875796 | F8: 30.97395611 | G8: 30.90938368 | H8: 30.8539669
B9: Total Crown revenue | C9: 39.25898669 | D9: 39.0012346 | E9: 38.94759133 | F9: 38.92133621 | G9: 38.81900314 | H9: 38.72450202
B10: Core Crown expenses | C10: 30.28338591 | D10: 30.65161617 | E10: 30.82198446 | F10: 30.89821356 | G10: 30.99899626 | H10: 31.09684727
B11: Total Crown expenses | C11: 38.63922093 | D11: 38.93069981 | E11: 39.03188751 | F11: 39.0080686 | G11: 39.05919984 | H11: 39.10948516
B12: OBEGALx | C12: 1.102988259 | D12: 0.4867066015 | E12: 0.2575802747 | F12: 0.161724402 | G12: -0.01185182313 | H12: -0.1763964392
B13: Operating balance | C13: 1.981410635 | D13: 1.397058186 | E13: 1.296786847 | F13: 1.350395435 | G13: 1.250833024 | H13: 1.161381133
B14: Net core Crown debt | C14: 44.39297767 | D14: 42.02174385 | E14: 40.47743589 | F14: 39.20055149 | G14: 38.30545973 | H14: 37.84358946
B15: Total borrowings | C15: 65.67713378 | D15: 64.19178915 | E15: 63.26792703 | F15: 62.32352615 | G15: 61.59985583 | H15: 61.21554662
B16: Net worth | C16: 37.40005014 | D16: 37.42125039 | E16: 37.16631634 | F16: 37.0677424 | G16: 36.86993917 | H16: 36.54547987
B17: Net worth attributable to the Crown | C17: 35.56943234 | D17: 35.77594955 | E17: 35.67013553 | F17: 35.68390596 | G17: 35.58017533 | H17: 35.33858569

Sheet Table A2.4
B1: Table A2.4: Fiscal indicators from Scenario 4
B2: Source: The Treasury
B5: Year ending 30 June | C5: 2030 | D5: 2032 | E5: 2034 | F5: 2036 | G5: 2038 | H5: 2040
C6: Forecast | D6: Projection | E6: Projection | F6: Projection | G6: Projection | H6: Projection
B7: % of GDP
B8: Core Crown revenue | C8: 31.43110697 | D8: 31.13059627 | E8: 31.03875796 | F8: 30.97395611 | G8: 30.90938368 | H8: 30.8539669
B9: Total Crown revenue | C9: 39.25898669 | D9: 39.0012346 | E9: 38.94759133 | F9: 38.92133621 | G9: 38.81900314 | H9: 38.72450202
B10: Core Crown expenses | C10: 30.28338591 | D10: 30.66234369 | E10: 30.85831824 | F10: 30.96369604 | G10: 31.09473226 | H10: 31.22379378
B11: Total Crown expenses | C11: 38.63922093 | D11: 38.94142733 | E11: 39.06822129 | F11: 39.07355108 | G11: 39.15493584 | H11: 39.23643168
B12: OBEGALx | C12: 1.102988259 | D12: 0.4759790799 | E12: 0.2212465004 | F12: 0.09624192295 | G12: -0.1075878226 | H12: -0.3033429526
B13: Operating balance | C13: 1.981410635 | D13: 1.386330664 | E13: 1.260453073 | F13: 1.284912956 | G13: 1.155097025 | H13: 1.03443462
B14: Net core Crown debt | C14: 44.39297767 | D14: 42.38895827 | E14: 41.5011889 | F14: 40.92717731 | G14: 40.75395317 | H14: 41.03702063
B15: Total borrowings | C15: 65.67713378 | D15: 64.55900357 | E15: 64.29168003 | F15: 64.05015197 | G15: 64.04834927 | H15: 64.40897779
B16: Net worth | C16: 37.40005014 | D16: 37.40788015 | E16: 37.09600775 | F16: 36.88871677 | G16: 36.53142272 | H16: 35.99831128
B17: Net worth attributable to the Crown | C17: 35.56943234 | D17: 35.76257931 | E17: 35.59982694 | F17: 35.50488032 | G17: 35.24165888 | H17: 34.7914171

Sheet Data A3.1
B1: Figure A3.1: Real GDP forecasts from PREFU 2023 and BEFU 2026
B2: Sources: Stats NZ, the Treasury
C3: $billions (2009/10 prices)
B4: Quarterly | C4: PREFU 2023 | D4: BEFU 2026
B5: 2019-06-01 | C5: 64.504 | D5: 64.104
B6: 2019-09-01 | C6: 64.953 | D6: 64.598
B7: 2019-12-01 | C7: 65.424 | D7: 65.268
B8: 2020-03-01 | C8: 64.842 | D8: 64.555
B9: 2020-06-01 | C9: 58.139 | D9: 57.872
B10: 2020-09-01 | C10: 66.109 | D10: 66.02
B11: 2020-12-01 | C11: 66.062 | D11: 66.311
B12: 2021-03-01 | C12: 67.563 | D12: 67.606
B13: 2021-06-01 | C13: 68.839 | D13: 68.141
B14: 2021-09-01 | C14: 65.964 | D14: 65.199
B15: 2021-12-01 | C15: 68.245 | D15: 67.852
B16: 2022-03-01 | C16: 68.289 | D16: 67.783
B17: 2022-06-01 | C17: 69.332 | D17: 68.439
B18: 2022-09-01 | C18: 70.325 | D18: 69.729
B19: 2022-12-01 | C19: 69.841 | D19: 69.879
B20: 2023-03-01 | C20: 69.796 | D20: 69.88
B21: 2023-06-01 | C21: 70.18971333 | D21: 70.52
B22: 2023-09-01 | C22: 70.48792363 | D22: 70.564
B23: 2023-12-01 | C23: 70.77662846 | D23: 70.882
B24: 2024-03-01 | C24: 71.0649123 | D24: 70.997
B25: 2024-06-01 | C25: 71.37179779 | D25: 70.596
B26: 2024-09-01 | C26: 71.67537407 | D26: 69.716
B27: 2024-12-01 | C27: 72.05720814 | D27: 69.728
B28: 2025-03-01 | C28: 72.49843878 | D28: 70.494
B29: 2025-06-01 | C29: 73.03755544 | D29: 69.886
B30: 2025-09-01 | C30: 73.68435304 | D30: 70.489
B31: 2025-12-01 | C31: 74.3843657 | D31: 70.664
B32: 2026-03-01 | C32: 75.07656784 | D32: 70.97504146 | E32: Forecast
B33: 2026-06-01 | C33: 75.7457164 | D33: 71.14439584
B34: 2026-09-01 | C34: 76.33158668 | D34: 71.59016225
B35: 2026-12-01 | C35: 76.86383344 | D35: 72.15315604
B36: 2027-03-01 | C36: 77.3830814 | D36: 72.76303732
B37: 2027-06-01 | C37: 77.89721105 | D37: 73.36820238
B38: 2027-09-01 | D38: 73.96166487
B39: 2027-12-01 | D39: 74.53357476
B40: 2028-03-01 | D40: 75.08403004
B41: 2028-06-01 | D41: 75.60899597
B42: 2028-09-01 | D42: 76.10340954
B43: 2028-12-01 | D43: 76.5916215
B44: 2029-03-01 | D44: 77.09408343
B45: 2029-06-01 | D45: 77.58860963
B46: 2029-09-01 | D46: 78.07042525
B47: 2029-12-01 | D47: 78.54241738
B48: 2030-03-01 | D48: 79.00980072
B49: 2030-06-01 | D49: 79.47752917
B51: * Real production GDP, seasonally adjusted

Sheet Data A3.2
B1: Figure A3.2: Core Crown tax-to-GDP ratio forecasts from PREFU 2023 and BEFU 2026
B2: Sources: Stats NZ, the Treasury
C4: % of GDP
B5: Year ending 30 June | C5: PREFU 2023 | D5: BEFU 2026
B6: 2019 | C6: 27.9 | D6: 27.9
B7: 2020 | C7: 26.8 | D7: 26.8
B8: 2021 | C8: 28.6 | D8: 28.5
B9: 2022 | C9: 29.9 | D9: 29.7
B10: 2023 | C10: 28.6 | D10: 28
B11: 2024 | C11: 29.2 | D11: 28.6
B12: 2025 | C12: 29.6 | D12: 28 | E12: Forecast
B13: 2026 | C13: 30.1 | D13: 27.6
B14: 2027 | C14: 30.1 | D14: 28
B15: 2028 | D15: 28.2
B16: 2029 | D16: 28.6
B17: 2030 | D17: 28.8

Sheet Table A3.1
B1: Table A3.1 – Changes in OBEGALx forecasts between PREFU 2023 and BEFU 2026
B2: Source: The Treasury
B4: Year ending 30 June | C4: 2026 Forecast | D4: 2027 Forecast
B5: $billions
B6: OBEGALx – 2023 PREFU | C6: 1.6 | D6: 5.3
B7: Tax revenue (excluding Budget decisions) | C7: -11 | D7: -10.4
B8: Benefit and NZ Superannuation expenses (excluding Budget decisions) | C8: -0.3 | D8: -1.1
B9: Debt impairments | C9: -0.6 | D9: -0.4
B10: Net core Crown finance costs | C10: -0.2 | D10: -0.8
B11: Emissions Trading Scheme forecast changes (net impact) | C11: -0.9 | D11: -0.5
B12: Education – forecast and depreciation changes | C12: -0.6 | D12: -0.6
B13: Budget packages and allowance changes | C13: 2.5 | D13: 1.7
B14: Baseline savings forecast in PREFU but not implemented | C14: -0.5 | D14: -0.5
B15: Asset impairments | C15: -0.5 | D15: -0.2
B16: State-owned enterprise and Crown entity results | C16: -0.5 | D16: -1.1
B17: Other | C17: -0.9 | D17: -2.8
B18: Total movement | C18: -13.5 | D18: -16.7
B19: OBEGALx – 2026 BEFU | C19: -11.9 | D19: -11.4

Sheet Table A4.1
B1: Table A4.1: NZSF contributions
B2: Source: The Treasury
B4: Year ending 30 June $millions | C4: 2026 Forecast | D4: 2027 Forecast | E4: 2028 Forecast | F4: 2029 Forecast | G4: 2030 Forecast
B5: NZSF contributions – prescribed by formula | C5: 61 | D5: 562 | E5: 600 | F5: 893 | G5: 1049
B6: NZSF contributions – BEFU 2026 | C6: 0 | D6: 562 | E6: 600 | F6: 893 | G6: 1049
